fUSD/lending_fUSD_20250507
["ID","MTS","AMOUNT","RATE_DAILY","PERIOD"]
[360158264,1746581454626,-500.0,0.00019579,2]
[360158265,1746581454637,-820.57,0.00019579,2]
[360158266,1746581454647,-820.57,0.00019579,2]
[360158267,1746581454656,-450.0,0.00019579,2]
[360158268,1746581454665,-450.0,0.00019579,2]
[360158269,1746581454674,-450.0,0.00019579,2]
[360158270,1746581454683,-450.0,0.00019579,2]
[360158271,1746581454693,-450.0,0.00019579,2]
[360158272,1746581454702,-614.98,0.00019579,2]
[360158273,1746581454712,-614.98,0.00019579,2]
[360158274,1746581454721,-450.0,0.00019579,2]
[360158275,1746581454730,-450.0,0.00019579,2]
[360158276,1746581454740,-225.33,0.00019579,2]
[360158277,1746581454749,-700.99,0.00019579,2]
[360158278,1746581454759,-700.99,0.00019579,2]
[360158279,1746581454769,-602.8,0.00019579,2]
[360158280,1746581454778,-602.8,0.00019579,2]
[360158281,1746581454787,-820.34,0.00019579,2]
[360158282,1746581454797,-820.34,0.00019579,2]
[360158283,1746581454806,-577.8,0.00019579,2]
[360158284,1746581454815,-577.8,0.00019579,2]
[360158285,1746581454824,-450.0,0.00019579,2]
[360158286,1746581454834,-510.0,0.00019579,2]
[360158287,1746581454847,-151.0,0.00019579,2]
[360158288,1746581454859,-76.76636231,0.00019579,2]
[360158289,1746581455815,-392.73540042,0.00019576,2]
[360158290,1746581455827,-57.26459958,0.00019576,2]
[360158291,1746581455837,-450.0,0.00019576,2]
[360158292,1746581455847,-373.23363769,0.00019579,2]
[360158293,1746581455856,-450.0,0.00019579,2]
[360158294,1746581455868,-450.0,0.00019579,2]
[360158295,1746581455878,-450.0,0.00019579,2]
[360158296,1746581455889,-185.55602879,0.00019579,2]
[360158297,1746581455899,-450.0,0.00019579,2]
[360158298,1746581455910,-450.0,0.00019579,2]
[360158299,1746581455919,-450.0,0.00019579,2]
[360158300,1746581455929,-450.0,0.00019579,2]
[360158301,1746581455939,-450.0,0.00019579,2]
[360158302,1746581455949,-450.0,0.00019579,2]
[360158303,1746581455959,-340.75604498,0.00019579,2]
[360158304,1746581455971,-109.24395502,0.00019579,2]
[360158305,1746581455980,-680.75,0.00019579,2]
[360158306,1746581455989,-680.75,0.00019579,2]
[360158307,1746581455999,-450.0,0.00019579,2]
[360158308,1746581456008,-450.0,0.00019579,2]
[360158309,1746581456018,-450.0,0.00019579,2]
[360158310,1746581456027,-151.0,0.00019579,2]
[360158311,1746581456037,-151.0,0.00019579,2]
[360158312,1746581456046,-597.6980047,0.00019579,2]
[360158313,1746581456056,-450.0,0.00019579,2]
[360158314,1746581456065,-194.89283184,0.00019579,2]
[360158315,1746581456077,-255.10716816,0.00019579,2]
[360158316,1746581456086,-450.0,0.00019579,2]
[360158317,1746581456096,-450.0,0.00019579,2]
[360158318,1746581456107,-450.0,0.00019579,2]
[360158319,1746581456117,-550.0,0.00019579,2]
[360158320,1746581456126,-151.0,0.00019579,2]
[360158321,1746581456135,-151.0,0.00019579,2]
[360158322,1746581456145,-392.526314,0.00019579,2]
[360158323,1746581456154,-727.28,0.00019579,2]
[360158324,1746581456163,-727.28,0.00019579,2]
[360158325,1746581456173,-151.0,0.00019579,2]
[360158326,1746581456182,-151.0,0.00019579,2]
[360158327,1746581456191,-363.088103,0.00019579,2]
[360158328,1746581456201,-363.088103,0.00019579,2]
[360158329,1746581456210,-392.526314,0.00019579,2]
[360158330,1746581456219,-886.6,0.00019579,2]
[360158331,1746581456229,-263.06301212,0.00019579,2]
[360158332,1746581456554,-517.36723734,0.00019576,2]
[360158333,1746581456565,-478.54294605,0.00019577,2]
[360158334,1746581456574,-623.53698788,0.00019579,2]
[360158335,1746581456583,-363.088103,0.00019579,2]
[360158336,1746581456592,-149.31728451,0.00019579,2]
[360158337,1746581456604,-213.77081849,0.00019579,2]
[360158338,1746581456613,-450.0,0.00019579,2]
[360158339,1746581456623,-450.0,0.00019579,2]
[360158340,1746581456632,-166.468195,0.00019579,2]
[360158341,1746581456642,-450.0,0.00019579,2]
[360158342,1746581456652,-450.0,0.00019579,2]
[360158343,1746581456661,-860.45565384,0.00019579,2]
[360158344,1746581456672,-1.08434616,0.00019579,2]
[360158345,1746581456682,-861.54,0.00019579,2]
[360158346,1746581456691,-439.155032,0.00019579,2]
[360158347,1746581456700,-439.155032,0.00019579,2]
[360158348,1746581456709,-439.155032,0.00019579,2]
[360158349,1746581456719,-450.53,0.00019579,2]
[360158350,1746581456728,-450.53,0.00019579,2]
[360158351,1746581456737,-439.155032,0.00019579,2]
[360158352,1746581456746,-439.155032,0.00019579,2]
[360158353,1746581456755,-439.155032,0.00019579,2]
[360158354,1746581456764,-151.0,0.00019579,2]
[360158355,1746581456775,-151.0,0.00019579,2]
[360158356,1746581456784,-685.84,0.00019579,2]
[360158357,1746581456794,-685.84,0.00019579,2]
[360158358,1746581456803,-450.0,0.00019579,2]
[360158359,1746581456813,-450.0,0.00019579,2]
[360158360,1746581456822,-151.0,0.00019579,2]
[360158361,1746581456832,-151.0,0.00019579,2]
[360158362,1746581456841,-450.0,0.00019579,2]
[360158363,1746581456852,-433.63,0.00019579,2]
[360158364,1746581456865,-450.0,0.00019579,2]
[360158365,1746581456874,-450.0,0.00019579,2]
[360158366,1746581456883,-532.13,0.00019579,2]
[360158367,1746581456892,-450.0,0.00019579,2]
[360158368,1746581456902,-752.27,0.00019579,2]
[360158369,1746581456911,-752.27,0.00019579,2]
[360158370,1746581456920,-450.0,0.00019579,2]
[360158371,1746581456930,-450.0,0.00019579,2]
[360158372,1746581456941,-641.75,0.00019579,2]
[360158373,1746581456951,-641.75,0.00019579,2]
[360158374,1746581456961,-450.0,0.00019579,2]
[360158375,1746581456970,-151.0,0.00019579,2]
[360158376,1746581456979,-484.14,0.00019579,2]
[360158377,1746581456988,-484.14,0.00019579,2]
[360158378,1746581456997,-525.55,0.00019579,2]
[360158379,1746581457007,-525.55,0.00019579,2]
[360158380,1746581457016,-151.0,0.00019579,2]
[360158381,1746581457026,-151.0,0.00019579,2]
[360158382,1746581457035,-450.0,0.00019579,2]
[360158383,1746581457045,-450.0,0.00019579,2]
[360158384,1746581457054,-513.02,0.00019579,2]
[360158385,1746581457064,-513.02,0.00019579,2]
[360158386,1746581457073,-450.0,0.00019579,2]
[360158387,1746581457082,-534.21,0.00019579,2]
[360158388,1746581457092,-450.0,0.00019579,2]
[360158389,1746581457101,-450.0,0.00019579,2]
[360158390,1746581457111,-1398.05547478,0.00019579,2]
[360158391,1746581457120,-1505.72,0.00019579,2]
[360158392,1746581457129,-1505.72,0.00019579,2]
[360158393,1746581457138,-450.0,0.00019579,2]
[360158394,1746581457148,-450.0,0.00019579,2]
[360158395,1746581457156,-450.0,0.00019579,2]
[360158396,1746581457164,-1789.96,0.00019579,2]
[360158397,1746581457173,-491.95,0.00019579,2]
[360158398,1746581457181,-491.95,0.00019579,2]
[360158399,1746581457190,-185.157984,0.00019579,2]
[360158400,1746581457200,-185.157984,0.00019579,2]
[360158401,1746581457209,-993.53,0.00019579,2]
[360158402,1746581457217,-993.53,0.00019579,2]
[360158403,1746581457226,-185.157984,0.00019579,2]
[360158404,1746581457234,-185.157984,0.00019579,2]
[360158405,1746581457242,-450.0,0.00019579,2]
[360158406,1746581457251,-1566.26,0.00019579,2]
[360158407,1746581457259,-1846.23,0.00019579,2]
[360158408,1746581457269,-1885.14,0.00019579,2]
[360158409,1746581457278,-1885.14,0.00019579,2]
[360158410,1746581457287,-2029.77,0.00019579,2]
[360158411,1746581457296,-450.0,0.00019579,2]
[360158412,1746581457305,-457.12,0.00019579,2]
[360158413,1746581457315,-521.0,0.00019579,2]
[360158414,1746581457324,-610.71,0.00019579,2]
[360158415,1746581457333,-1377.83803503,0.00019579,2]
[360158416,1746581457347,-738.24196497,0.00019579,2]
[360158417,1746581457356,-781.15776025,0.00019579,2]
[360158418,1746581457367,-265.01702845,0.00019579,2]
[360158419,1746581457379,-999.6752,0.00019579,2]
[360158420,1746581457390,-70.2300113,0.00019579,2]
[360158421,1746581457399,-151.0,0.00019579,2]
[360158422,1746581457409,-450.0,0.00019579,2]
[360158423,1746581457418,-132.83697264,0.00019579,2]
[360158424,1746581457832,-164.51931623,0.00019576,2]
[360158425,1746581457842,-450.0,0.00019577,2]
[360158426,1746581457852,-317.16302736,0.00019579,2]
[360158427,1746581457865,-1168.38,0.00019579,2]
[360158428,1746581457874,-274.41265641,0.00019579,2]
[360158429,1746581457902,-494.98227928,0.00019577,2]
[360158430,1746581457911,-893.96734359,0.00019579,2]
[360158431,1746581457920,-460.15037714,0.00019579,2]
[360158432,1746581457938,-1345.65962286,0.00019579,2]
[360158433,1746581457947,-450.0,0.00019579,2]
[360158434,1746581457957,-156.34037714,0.00019579,2]
[360158435,1746581457969,-1885.18962286,0.00019579,2]
[360158436,1746581457978,-736.99773111,0.00019579,2]
[360158437,1746581458376,-375.00787454,0.00019577,2]
[360158438,1746581458388,-74.99212546,0.00019577,2]
[360158439,1746581458398,-359.03226889,0.00019579,2]
[360158440,1746581458407,-73.88560565,0.00019579,2]
[360158441,1746581458419,-1022.14439435,0.00019579,2]
[360158442,1746581458429,-521.30660694,0.00019579,2]
[360158443,1746581459034,190.41,0.00018663,2]
[360158444,1746581482389,521.945,0.00019477,2]
[360158445,1746581508016,30477.6766,0.00019476,2]
[360158446,1746581528690,157.3485474,0.00019479,2]
[360158447,1746581538961,289.41567406,0.00019483,2]
[360158448,1746581540609,233.122448,0.0003,30]
[360158449,1746581651685,331387.88419334,0.00019215,2]
[360158450,1746581651712,46931.15704783,0.00019215,2]
[360158451,1746581653286,378319.04124117,0.00019224,2]
[360158452,1746581668665,98427.88220331,0.00019202,2]
[360158453,1746581669026,98427.88220331,0.00019269,2]
[360158454,1746581675459,500.0,0.00030137,120]
[360158455,1746581680213,269.85380468,0.00030137,120]
[360158456,1746581681994,987.20747059,0.00019289,2]
[360158457,1746581682269,987.20747059,0.00019285,2]
[360158458,1746581687726,500.0,0.00030137,120]
[360158459,1746581693477,500.0,0.00030137,120]
[360158460,1746581695156,4255.30038614,0.00019251,2]
[360158461,1746581695412,4255.30038614,0.00019191,2]
[360158462,1746581698732,500.0,0.00030137,120]
[360158463,1746581706422,1849.9179924,0.0003,30]
[360158464,1746581709193,500.0,0.00030137,120]
[360158465,1746581715821,27777.88527249,0.00019257,2]
[360158466,1746581717558,27777.88527249,0.00019197,2]
[360158467,1746581723822,500.0,0.00030137,120]
[360158468,1746581729253,500.0,0.00030137,120]
[360158469,1746581734274,500.0,0.00030137,120]
[360158470,1746581734702,2245.02008754,0.00019197,2]
[360158471,1746581734995,2245.02008754,0.00019259,2]
[360158472,1746581749403,5321.20457099,0.00019194,2]
[360158473,1746581749753,5321.20457099,0.00019229,2]
[360158474,1746581749791,500.0,0.00030137,120]
[360158475,1746581754266,500.0,0.00030137,120]
[360158476,1746581759426,500.0,0.00030137,120]
[360158477,1746581764215,157.34854737,0.00019477,2]
[360158478,1746581766333,500.0,0.00030137,120]
[360158479,1746581772685,500.0,0.00030137,120]
[360158480,1746581782139,1296.30131282,0.00019231,2]
[360158481,1746581782407,1296.30131282,0.00019196,2]
[360158482,1746581786508,270.77312267,0.00019477,2]
[360158483,1746581809023,212.84818296,0.0001921,2]
[360158484,1746581810587,8431.47,0.0003,30]
[360158485,1746581855462,404.9,0.000195,2]
[360158486,1746581866642,265.98756693,0.00019476,2]
[360158487,1746581882280,280.05763908,0.00019478,2]
[360158488,1746581888907,260.4741066,0.00019477,2]
[360158489,1746581895875,285.722,0.00019476,2]
[360158491,1746581934192,843.95,0.00019476,2]
[360158492,1746581955027,150.0,0.00018569,2]
[360158493,1746581962350,943.93784877,0.0003,120]
[360158494,1746581990520,178.31957276,0.00019278,2]
[360158495,1746581992336,178.31,0.00019366,2]
[360158496,1746582074508,157.34854737,0.00019476,2]
[360158497,1746582100903,1968.35,0.000195,2]
[360158498,1746582103221,2200.0,0.0003,30]
[360158499,1746582116392,336.92132101,0.00019477,2]
[360158502,1746582239842,234.42669594,0.00019476,2]
[360158504,1746582281598,727.56,0.00016651,2]
[360158505,1746582281816,727.56,0.00018915,2]
[360158506,1746582289818,157.34854737,0.00019476,2]
[360158507,1746582371681,2000.0,0.0003,30]
[360158508,1746582398675,5611.0,0.0003,30]
[360158509,1746582411477,385.44887924,0.0003013,120]
[360158510,1746582498884,1000.0,0.00018593,2]
[360158511,1746582507726,169.57,0.00018594,2]
[360158512,1746582528095,23900.0,0.00018593,2]
[360158517,1746582590353,210.9840264,0.00019475,2]
[360158539,1746582631583,-151.0,0.00019555,2]
[360158540,1746582631594,-250.0,0.00019555,2]
[360158541,1746582631604,-200.0,0.00019556,2]
[360158542,1746582631613,-200.0,0.0001956,2]
[360158543,1746582631623,-207.4,0.00019562,2]
[360158544,1746582631632,-1200.0,0.00019563,2]
[360158545,1746582631642,-300.0,0.00019563,2]
[360158546,1746582631651,-153.33515574,0.00019564,2]
[360158547,1746582631661,-151.0,0.00019564,2]
[360158548,1746582631815,-30.40405009,0.00019564,2]
[360158549,1746582631828,-124.59594991,0.00019564,2]
[360158550,1746582631838,-151.0,0.00019564,2]
[360158551,1746582631851,-668.65185757,0.00019564,2]
[360158552,1746582631861,-151.0,0.00019564,2]
[360158553,1746582631871,-192.08,0.00019565,2]
[360158554,1746582631880,-192.08,0.00019565,2]
[360158555,1746582631889,-192.08,0.00019565,2]
[360158556,1746582631899,-192.08,0.00019565,2]
[360158558,1746582631910,-192.08,0.00019565,2]
[360158560,1746582631920,-192.08,0.00019565,2]
[360158562,1746582631929,-192.08,0.00019565,2]
[360158564,1746582631938,-192.08,0.00019565,2]
[360158566,1746582631948,-192.08,0.00019565,2]
[360158568,1746582631957,-192.08,0.00019565,2]
[360158569,1746582631966,-1136.0,0.00019565,2]
[360158570,1746582631975,-162.1679196,0.00019567,2]
[360158571,1746582631985,-269.94322104,0.00019567,2]
[360158572,1746582631995,-1369.85194108,0.00019568,2]
[360158573,1746582632005,-9254.99427051,0.00019573,2]
[360158574,1746582632014,-450.0,0.00019574,2]
[360158575,1746582632023,-450.0,0.00019574,2]
[360158576,1746582632032,-667.95,0.00019574,2]
[360158577,1746582632041,-450.0,0.00019574,2]
[360158578,1746582632051,-508.49,0.00019574,2]
[360158579,1746582632060,-453.83182701,0.00019574,2]
[360158580,1746582632070,-419.19206976,0.00019574,2]
[360158581,1746582632079,-450.0,0.00019574,2]
[360158582,1746582632088,-1030.49,0.00019574,2]
[360158583,1746582632098,-450.0,0.00019574,2]
[360158584,1746582632108,-450.0,0.00019574,2]
[360158585,1746582632118,-609.91,0.00019574,2]
[360158586,1746582632127,-1989.46,0.00019574,2]
[360158587,1746582632137,-450.0,0.00019574,2]
[360158588,1746582632146,-1537.94,0.00019574,2]
[360158589,1746582632156,-450.0,0.00019574,2]
[360158590,1746582632166,-450.0,0.00019574,2]
[360158591,1746582632175,-450.0,0.00019574,2]
[360158592,1746582632184,-450.0,0.00019574,2]
[360158593,1746582632194,-550.66489095,0.00019574,2]
[360158594,1746582632204,-450.0,0.00019574,2]
[360158595,1746582632213,-226.07472704,0.00019574,2]
[360158596,1746582632223,-450.0,0.00019574,2]
[360158597,1746582632233,-963.33,0.00019574,2]
[360158598,1746582632243,-450.0,0.00019574,2]
[360158599,1746582632253,-471.58584519,0.00019574,2]
[360158600,1746582632263,-540.05659617,0.00019574,2]
[360158601,1746582632276,-2217.43,0.00019574,2]
[360158602,1746582632286,-450.0,0.00019574,2]
[360158603,1746582632296,-575.015791,0.00019574,2]
[360158604,1746582632307,-450.0,0.00019574,2]
[360158605,1746582632316,-1285.907547,0.00019574,2]
[360158606,1746582632325,-450.0,0.00019574,2]
[360158607,1746582632335,-450.0,0.00019574,2]
[360158608,1746582632346,-542.29579088,0.00019574,2]
[360158609,1746582632356,-500.0,0.00019574,2]
[360158610,1746582632365,-500.0,0.00019574,2]
[360158611,1746582632374,-500.0,0.00019574,2]
[360158612,1746582632384,-500.0,0.00019574,2]
[360158613,1746582632394,-500.0,0.00019574,2]
[360158614,1746582632403,-500.0,0.00019574,2]
[360158615,1746582632413,-500.0,0.00019574,2]
[360158616,1746582632423,-500.0,0.00019574,2]
[360158617,1746582632432,-500.0,0.00019574,2]
[360158618,1746582632441,-500.0,0.00019574,2]
[360158619,1746582632451,-500.0,0.00019574,2]
[360158620,1746582632460,-500.0,0.00019574,2]
[360158621,1746582632470,-500.0,0.00019574,2]
[360158622,1746582632480,-500.0,0.00019574,2]
[360158623,1746582632489,-500.0,0.00019574,2]
[360158624,1746582632499,-500.0,0.00019574,2]
[360158625,1746582632508,-545.98567203,0.00019574,2]
[360158626,1746582632518,-545.98567203,0.00019574,2]
[360158627,1746582632528,-545.98567203,0.00019574,2]
[360158628,1746582632537,-545.98567203,0.00019574,2]
[360158629,1746582632547,-545.98567203,0.00019574,2]
[360158630,1746582632556,-545.98567203,0.00019574,2]
[360158631,1746582632566,-545.98567203,0.00019574,2]
[360158632,1746582632576,-545.98567203,0.00019574,2]
[360158633,1746582632585,-545.98567203,0.00019574,2]
[360158634,1746582632595,-545.98567203,0.00019574,2]
[360158635,1746582632604,-545.98567203,0.00019574,2]
[360158636,1746582632614,-545.98567203,0.00019574,2]
[360158637,1746582632623,-545.98567203,0.00019574,2]
[360158638,1746582632632,-545.98567203,0.00019574,2]
[360158639,1746582632641,-545.98567203,0.00019574,2]
[360158640,1746582632651,-545.98567203,0.00019574,2]
[360158641,1746582632661,-545.98567203,0.00019574,2]
[360158642,1746582632670,-545.98567203,0.00019574,2]
[360158643,1746582632679,-545.98567203,0.00019574,2]
[360158644,1746582632689,-545.98567203,0.00019574,2]
[360158645,1746582632698,-545.98567203,0.00019574,2]
[360158646,1746582632707,-545.98567203,0.00019574,2]
[360158647,1746582632716,-545.98567203,0.00019574,2]
[360158648,1746582632726,-545.98567203,0.00019574,2]
[360158649,1746582632735,-545.98567203,0.00019574,2]
[360158650,1746582632745,-545.98567203,0.00019574,2]
[360158651,1746582632754,-545.98567203,0.00019574,2]
[360158652,1746582632764,-545.98567203,0.00019574,2]
[360158653,1746582632773,-545.98567203,0.00019574,2]
[360158654,1746582632782,-545.98567203,0.00019574,2]
[360158655,1746582632791,-545.98567203,0.00019574,2]
[360158656,1746582632801,-545.98567203,0.00019574,2]
[360158657,1746582632810,-545.98567203,0.00019574,2]
[360158658,1746582632820,-545.98567203,0.00019574,2]
[360158659,1746582632830,-545.98567203,0.00019574,2]
[360158660,1746582632840,-545.98567203,0.00019574,2]
[360158661,1746582632851,-545.98567203,0.00019574,2]
[360158662,1746582632861,-545.98567203,0.00019574,2]
[360158663,1746582632870,-545.98567203,0.00019574,2]
[360158664,1746582632880,-545.98567203,0.00019574,2]
[360158665,1746582632890,-545.98567203,0.00019574,2]
[360158666,1746582632900,-545.98567203,0.00019574,2]
[360158667,1746582632909,-545.98567203,0.00019574,2]
[360158668,1746582632918,-545.98567203,0.00019574,2]
[360158669,1746582632928,-545.98567203,0.00019574,2]
[360158670,1746582632938,-545.98567203,0.00019574,2]
[360158671,1746582632947,-545.98567203,0.00019574,2]
[360158672,1746582632958,-545.98567203,0.00019574,2]
[360158673,1746582632967,-545.98567203,0.00019574,2]
[360158674,1746582632977,-545.98567203,0.00019574,2]
[360158675,1746582632986,-545.98567203,0.00019574,2]
[360158676,1746582632996,-545.98567203,0.00019574,2]
[360158677,1746582633005,-545.98567203,0.00019574,2]
[360158678,1746582633015,-545.98567203,0.00019574,2]
[360158679,1746582633024,-545.98567203,0.00019574,2]
[360158680,1746582633033,-1975.94814638,0.00019574,2]
[360158681,1746582633043,-1975.94814638,0.00019574,2]
[360158682,1746582633052,-1695.72843303,0.00019574,2]
[360158683,1746582633065,-280.21971335,0.00019574,2]
[360158684,1746582633075,-149.81948489,0.00019574,2]
[360158685,1746582633105,-1120.72009883,0.00019574,2]
[360158686,1746582633117,-705.40856266,0.00019574,2]
[360158687,1746582633127,-1975.94814638,0.00019574,2]
[360158688,1746582633136,-1192.11033121,0.00019574,2]
[360158689,1746582633149,-783.83781517,0.00019574,2]
[360158690,1746582633158,-470.0,0.00019575,2]
[360158691,1746582633168,-453.17311495,0.00019575,2]
[360158692,1746582633178,-195.55717815,0.00019575,2]
[360158693,1746582633189,-452.99753057,0.00019575,2]
[360158694,1746582633198,-452.31744984,0.00019575,2]
[360158695,1746582633208,-524.3998524,0.00019575,2]
[360158696,1746582633217,-580.19427269,0.00019575,2]
[360158697,1746582633227,-553.91727094,0.00019575,2]
[360158698,1746582633237,-532.95925181,0.00019575,2]
[360158699,1746582633248,-450.0,0.00019575,2]
[360158700,1746582633262,-450.0,0.00019575,2]
[360158701,1746582633271,-450.0,0.00019575,2]
[360158702,1746582633281,-450.0,0.00019575,2]
[360158703,1746582633291,-690.0,0.00019575,2]
[360158704,1746582633302,-690.0,0.00019575,2]
[360158705,1746582633312,-485.09463124,0.00019575,2]
[360158706,1746582633322,-484.99,0.00019575,2]
[360158707,1746582633332,-484.99,0.00019575,2]
[360158708,1746582633341,-30.57163224,0.00019575,2]
[360158709,1746582633366,-419.42836776,0.00019575,2]
[360158710,1746582633375,-450.0,0.00019575,2]
[360158711,1746582633385,-59.56695366,0.00019575,2]
[360158712,1746582641681,-528.01640959,0.00019574,2]
[360158713,1746582641691,-450.0,0.00019574,2]
[360158714,1746582641700,-390.43304634,0.00019575,2]
[360158715,1746582641709,-487.61478471,0.00019575,2]
[360158716,1746582641718,-483.314521,0.00019575,2]
[360158717,1746582641727,-490.23585165,0.00019575,2]
[360158718,1746582641737,-450.0,0.00019575,2]
[360158719,1746582641746,-450.0,0.00019575,2]
[360158720,1746582641755,-450.0,0.00019575,2]
[360158721,1746582641765,-482.97741878,0.00019575,2]
[360158722,1746582641774,-450.0,0.00019575,2]
[360158723,1746582641783,-506.65422478,0.00019575,2]
[360158724,1746582641793,-465.27721902,0.00019575,2]
[360158725,1746582641803,-450.0,0.00019575,2]
[360158726,1746582641813,-450.0,0.00019575,2]
[360158727,1746582641823,-450.0,0.00019575,2]
[360158728,1746582641832,-450.0,0.00019575,2]
[360158729,1746582641841,-482.81,0.00019575,2]
[360158730,1746582641850,-450.0,0.00019575,2]
[360158731,1746582641859,-482.81,0.00019575,2]
[360158732,1746582641868,-450.0,0.00019575,2]
[360158733,1746582641877,-450.0,0.00019575,2]
[360158734,1746582641886,-450.0,0.00019575,2]
[360158735,1746582641895,-450.0,0.00019575,2]
[360158736,1746582641904,-450.0,0.00019575,2]
[360158737,1746582641913,-217.41923944,0.00019575,2]
[360158738,1746582641922,-557.85,0.00019575,2]
[360158739,1746582641932,-557.85,0.00019575,2]
[360158740,1746582641941,-450.0,0.00019575,2]
[360158741,1746582641951,-450.0,0.00019575,2]
[360158742,1746582641960,-450.0,0.00019575,2]
[360158743,1746582641969,-479.21450238,0.00019575,2]
[360158744,1746582641978,-450.0,0.00019575,2]
[360158745,1746582641987,-450.0,0.00019575,2]
[360158746,1746582641996,-508.83302194,0.00019575,2]
[360158747,1746582642005,-450.0,0.00019575,2]
[360158748,1746582642015,-450.0,0.00019575,2]
[360158749,1746582642023,-541.5,0.00019575,2]
[360158750,1746582642032,-541.5,0.00019575,2]
[360158751,1746582642141,-470.75769718,0.00019575,2]
[360158752,1746582642159,-489.23,0.00019575,2]
[360158753,1746582642169,-489.23,0.00019575,2]
[360158754,1746582642179,-450.0,0.00019575,2]
[360158755,1746582642188,-450.0,0.00019575,2]
[360158756,1746582642198,-450.0,0.00019575,2]
[360158757,1746582642208,-450.0,0.00019575,2]
[360158758,1746582642218,-450.0,0.00019575,2]
[360158759,1746582642228,-450.0,0.00019575,2]
[360158760,1746582642238,-450.0,0.00019575,2]
[360158761,1746582642247,-450.0,0.00019575,2]
[360158762,1746582642258,-450.0,0.00019575,2]
[360158763,1746582642268,-450.0,0.00019575,2]
[360158764,1746582642280,-521.46,0.00019575,2]
[360158765,1746582642291,-521.46,0.00019575,2]
[360158766,1746582642300,-452.73292449,0.00019575,2]
[360158767,1746582642311,-450.0,0.00019575,2]
[360158768,1746582642320,-450.0,0.00019575,2]
[360158769,1746582642331,-450.0,0.00019575,2]
[360158770,1746582642341,-450.0,0.00019575,2]
[360158771,1746582642352,-450.0,0.00019575,2]
[360158772,1746582642362,-450.0,0.00019575,2]
[360158773,1746582642371,-450.0,0.00019575,2]
[360158774,1746582642380,-450.0,0.00019575,2]
[360158775,1746582642391,-450.0,0.00019575,2]
[360158776,1746582642400,-450.0,0.00019575,2]
[360158777,1746582642411,-583.16835072,0.00019575,2]
[360158778,1746582642422,-450.0,0.00019575,2]
[360158779,1746582642431,-450.0,0.00019575,2]
[360158780,1746582642440,-450.0,0.00019575,2]
[360158781,1746582642449,-450.0,0.00019575,2]
[360158782,1746582642459,-481.83659262,0.00019575,2]
[360158783,1746582642468,-450.0,0.00019575,2]
[360158785,1746582642477,-450.0,0.00019575,2]
[360158787,1746582642487,-515.9334747,0.00019575,2]
[360158788,1746582642496,-450.0,0.00019575,2]
[360158790,1746582642506,-450.0,0.00019575,2]
[360158792,1746582642515,-450.0,0.00019575,2]
[360158794,1746582642524,-450.0,0.00019575,2]
[360158796,1746582642534,-450.0,0.00019575,2]
[360158798,1746582642543,-450.0,0.00019575,2]
[360158801,1746582642553,-450.0,0.00019575,2]
[360158805,1746582642562,-450.0,0.00019575,2]
[360158807,1746582642571,-450.0,0.00019575,2]
[360158810,1746582642582,-450.0,0.00019575,2]
[360158812,1746582642591,-483.16590219,0.00019575,2]
[360158813,1746582642600,-949.38,0.00019575,2]
[360158814,1746582642609,-949.38,0.00019575,2]